bitfinex/quotes_ETHUSD_20241207
["timestamp","ask_amount","ask_price","bid_price","bid_amount"]
[1733615334547,1.0511356,4006.4,4005.7,0.8233]
[1733615334761,0.18696604,4006.3,4005.8,0.05680111]
[1733615334946,0.18696604,4006.2,4005.8,0.05680111]
[1733615335151,4.5283395,4006.5,4005.7,0.8233]
[1733615335465,3.69118062,4006.4,4005.7,0.8233]
[1733615335665,1.05109515,4006.3,4005.7,0.8233]
[1733615335842,0.18695908,4006.2,4005.7,0.8233]
[1733615336164,0.18695908,4006.1,4005.7,0.8233]
[1733615336327,1.59544033,4006.4,4005.9,0.7992]
[1733615336528,0.18697092,4006.3,4005.9,0.7992]
[1733615336726,0.95229337,4006.5,4006.0,0.05680111]
[1733615337048,0.18695912,4006.4,4006.0,0.05680111]
[1733615337253,0.95229337,4006.5,4006.0,0.05680111]
[1733615337456,0.18694929,4006.4,4006.1,0.7992]
[1733615337640,0.95229337,4006.5,4006.1,0.7992]
[1733615342455,0.95229337,4006.5,4006.2,0.05648706]
[1733615343551,0.18692486,4006.4,4006.2,0.05648706]
[1733615343852,0.95229337,4006.5,4006.1,0.7992]
[1733615344071,0.18692488,4006.4,4006.1,0.7992]
[1733615344270,1.99704015,4006.5,4006.2,0.05648706]
[1733615344458,1.05145834,4006.4,4006.2,0.05648706]
[1733615344665,0.18691561,4006.3,4006.1,0.7992]
[1733615344885,1.99704015,4006.5,4006.1,0.7992]
[1733615345086,1.05143962,4006.4,4006.2,0.05648706]
[1733615345288,1.99704015,4006.5,4006.1,0.7992]
[1733615345493,2.34862769,4006.4,4006.1,0.7992]
[1733615345675,1.05151446,4006.3,4006.1,0.7992]
[1733615345865,1.99704015,4006.5,4006.1,0.7992]
[1733615346075,2.34836197,4006.4,4006.1,0.7992]
[1733615346389,2.34839358,4006.3,4006.1,0.7992]
[1733615346588,0.86458801,4006.2,4006.1,0.7992]
[1733615347252,2.16165916,4006.2,4006.1,0.7992]
[1733615347596,0.86458801,4006.2,4006.1,0.7992]
[1733615348056,1.04474678,4006.4,4006.1,0.7992]
[1733615348205,2.16243658,4006.3,4006.1,0.7992]
[1733615348410,1.04474678,4006.4,4006.1,0.7992]
[1733615348717,2.16272083,4006.3,4006.1,0.7992]
[1733615349048,0.86503385,4006.2,4006.1,0.7992]
[1733615349348,0.86517246,4006.2,4006.1,0.7992]
[1733615352546,1.04474678,4006.4,4006.1,0.7992]
[1733615352763,0.86505274,4006.3,4006.1,0.7992]
[1733615352913,1.04474678,4006.4,4006.1,0.7992]
[1733615353225,0.86507984,4006.3,4006.1,0.7992]
[1733615353421,1.99704015,4006.5,4006.1,0.7992]
[1733615353619,2.16265383,4006.4,4006.1,0.7992]
[1733615353818,0.86506153,4006.3,4006.1,0.7992]
[1733615354057,1.99704015,4006.5,4006.1,0.7992]
[1733615354233,3.20740505,4006.4,4006.1,0.7992]
[1733615354436,0.86506331,4006.3,4006.1,0.7992]
[1733615354672,1.04474678,4006.4,4006.1,0.7992]
[1733615354822,0.95229337,4006.5,4006.1,0.7992]
[1733615354823,0.86517894,4006.3,4006.1,0.7992]
[1733615355023,1.04474678,4006.4,4006.1,0.7992]
[1733615355302,0.8651579,4006.3,4006.1,0.7992]
[1733615355468,1.99704015,4006.5,4006.1,0.7992]
[1733615355760,3.20762316,4006.4,4006.1,0.7992]
[1733615355926,2.16287638,4006.3,4006.1,0.7992]
[1733615356264,0.86499459,4006.2,4006.1,0.7992]
[1733615356470,1.04474678,4006.4,4006.1,0.7992]
[1733615356764,0.86475706,4006.3,4006.1,0.7992]
[1733615356971,1.99704015,4006.5,4006.2,0.05451219]
[1733615357126,2.34859962,4006.4,4006.2,0.05451219]
[1733615357469,5.14054463,4006.3,4006.2,0.05451219]
[1733615357670,2.97876317,4006.3,4006.2,0.05451219]
[1733615357828,2.97876317,4006.3,4005.7,0.7721]
[1733615357829,4.09569057,4006.3,4005.7,0.7721]
[1733615358163,3.39406573,4006.2,4005.8,0.05441704]
[1733615358369,2.16167418,4006.1,4005.8,0.05441704]
[1733615358535,1.04561516,4006.2,4005.7,0.7721]
[1733615358742,2.16128373,4006.1,4005.7,0.7721]
[1733615359077,1.04561516,4006.2,4005.8,0.05441704]
[1733615359371,2.16124698,4006.1,4005.8,0.05441704]
[1733615359529,1.04561516,4006.2,4005.7,0.7721]
[1733615359727,2.16125865,4006.1,4005.7,0.7721]
[1733615359940,1.04561516,4006.2,4005.7,0.7721]
[1733615359941,1.04561516,4006.2,4005.8,0.05441704]
[1733615360278,1.04561516,4006.2,4005.7,0.7721]
[1733615360279,2.16127215,4006.1,4005.7,0.7721]
[1733615360476,1.04561516,4006.2,4005.7,0.7721]
[1733615360681,2.1616897,4006.1,4005.8,0.05441704]
[1733615360965,1.04561516,4006.2,4005.7,0.7721]
[1733615361178,0.86467318,4006.1,4005.7,0.7721]
[1733615361331,1.04561516,4006.2,4005.8,0.05454074]
[1733615361533,1.0514442,4006.1,4005.7,0.7721]
[1733615361730,1.04561516,4006.2,4005.7,0.7721]
[1733615361972,0.86462585,4006.1,4005.8,0.05454074]
[1733615362171,1.04561516,4006.2,4005.7,0.7721]
[1733615362468,1.05145121,4006.1,4005.8,0.05454074]
[1733615362668,2.79292516,4006.2,4005.8,0.05454074]
[1733615362911,2.34890949,4006.1,4005.7,0.7721]
[1733615363196,2.79292516,4006.2,4005.7,0.7721]
[1733615363391,2.34914731,4006.1,4005.8,0.05454074]
[1733615363571,0.86491731,4006.0,4005.7,0.7721]
[1733615363768,1.04561516,4006.1,4005.7,0.7721]
[1733615363962,1.74731,4006.2,4005.8,0.05266101]
[1733615363963,0.86490697,4006.0,4005.8,0.05266101]
[1733615364161,2.79292516,4006.2,4005.7,0.7721]
[1733615364357,3.39500454,4006.1,4005.7,0.7721]
[1733615364562,0.86500212,4006.0,4005.8,0.05266101]
[1733615364787,2.79292516,4006.2,4005.7,0.7721]
[1733615364995,4.09664466,4006.1,4005.7,0.7721]
[1733615365163,0.86496336,4006.0,4005.4,0.7721]
[1733615365364,2.51157,4006.1,4005.5,0.05276091]
[1733615365586,0.86486008,4006.0,4005.5,0.05276091]
[1733615365896,3.55718516,4006.1,4005.4,0.7721]
[1733615366070,0.86484949,4006.0,4005.6,0.05276091]
[1733615366399,0.86484949,4006.0,4005.4,0.7721]
[1733615366400,3.55718516,4006.1,4005.7,0.05276091]
[1733615366693,0.86488197,4006.0,4005.4,0.7721]
[1733615366903,3.55718516,4006.1,4005.4,0.7721]
[1733615367062,0.8649323,4006.0,4005.5,0.05276091]
[1733615367263,3.55718516,4006.1,4005.5,0.05276091]
[1733615367482,3.55718516,4006.1,4005.4,0.7721]
[1733615367695,3.55718516,4006.1,4005.6,0.05276091]
[1733615367696,0.86487231,4006.0,4005.6,0.05276091]
[1733615367995,3.55718516,4006.1,4005.7,0.05276091]
[1733615368200,0.86457983,4006.0,4005.4,0.7721]
[1733615368496,3.55718516,4006.1,4005.5,0.05276091]
[1733615368683,0.8646699,4006.0,4005.5,0.05276091]
[1733615369005,3.55718516,4006.1,4005.4,0.7721]
[1733615369199,0.86470522,4006.0,4005.4,0.7721]
[1733615369503,3.55718516,4006.1,4005.5,0.05276091]
[1733615369799,0.86465392,4006.0,4005.5,0.05276091]
[1733615370007,3.55718516,4006.1,4005.4,0.7721]
[1733615370165,0.8646513,4006.0,4005.4,0.7721]
[1733615370380,3.55718516,4006.1,4005.5,0.05276091]
[1733615370586,0.86474218,4006.0,4005.5,0.05276091]
[1733615370822,3.55718516,4006.1,4005.4,0.7721]
[1733615371023,0.86483372,4006.0,4005.5,0.05276091]
[1733615371218,3.55718516,4006.1,4005.4,0.7721]
[1733615371425,0.86486872,4006.0,4005.5,0.05276091]
[1733615371724,3.55718516,4006.1,4005.4,0.7721]
[1733615371919,3.55718516,4006.1,4005.6,0.05276091]
[1733615371920,2.34904557,4006.0,4005.6,0.05276091]
[1733615372126,3.55718516,4006.1,4005.4,0.7721]
[1733615372420,2.34925856,4006.0,4005.4,0.7721]
[1733615372610,0.86496758,4005.9,4005.5,0.05276091]
[1733615372819,1.04561516,4006.0,4005.4,0.7721]
[1733615372989,0.86497118,4005.9,4005.5,0.05276091]
[1733615373184,1.04561516,4006.0,4005.4,0.7721]
[1733615373421,0.86500194,4005.9,4005.4,0.7721]
[1733615373621,1.04561516,4006.0,4005.5,0.05276091]
[1733615373923,2.16280251,4005.9,4005.4,0.7721]
[1733615374135,0.86512064,4005.8,4005.6,0.05276091]
[1733615374286,1.04561516,4006.0,4005.5,0.05100554]
[1733615374480,2.16268868,4005.9,4005.4,0.7721]
[1733615374703,0.86505909,4005.8,4005.6,0.05100554]
[1733615374926,1.04561516,4006.0,4005.4,0.7721]
[1733615375228,2.51157,4006.1,4005.4,0.7721]
[1733615375229,1.04561516,4006.1,4005.4,0.8261]
[1733615375387,0.8652816,4006.0,4005.5,0.87711507]
[1733615375697,1.04561516,4006.2,4005.5,0.87711507]
[1733615375899,2.3501327,4006.1,4005.5,0.87711507]
[1733615376133,0.86529732,4006.0,4005.5,0.87711507]
[1733615376288,3.30909338,4006.3,4005.5,0.87711507]
[1733615376289,1.04561516,4006.1,4005.5,0.87711507]
[1733615376484,0.86552283,4006.0,4005.5,0.87711507]
[1733615376697,1.04561516,4006.1,4005.5,0.87711507]
[1733615376894,0.86553512,4006.0,4005.5,0.87711507]
[1733615377119,1.04561516,4006.1,4005.5,0.87711507]
[1733615377285,0.865476,4006.0,4005.5,0.87711507]
[1733615377487,1.04561516,4006.1,4005.5,0.87711507]
[1733615377800,0.86547324,4006.0,4005.5,0.87711507]
[1733615378034,1.04561516,4006.2,4005.5,0.87711507]
[1733615378258,2.35061788,4006.1,4005.5,0.87711507]
[1733615378428,0.86547772,4006.0,4005.5,0.87711507]
[1733615378627,1.04561516,4006.1,4005.5,0.87711507]
[1733615378927,0.86547434,4006.0,4005.5,0.87711507]
[1733615379152,1.04561516,4006.1,4005.5,0.87711507]
[1733615379334,0.86545614,4006.0,4005.5,0.87711507]
[1733615379660,1.04561516,4006.1,4005.5,0.87711507]
[1733615379835,0.86546991,4006.0,4005.5,0.87711507]
[1733615380037,1.04561516,4006.1,4005.5,0.87711507]
[1733615380356,0.8654757,4006.0,4005.5,0.87711507]
[1733615380559,1.04561516,4006.1,4005.5,0.87711507]
[1733615380760,0.86546304,4006.0,4005.5,0.87711507]
[1733615380968,1.04561516,4006.2,4005.5,0.87711507]
[1733615381258,2.35060387,4006.1,4005.5,0.87711507]
[1733615381447,1.04561516,4006.2,4005.5,0.87711507]
[1733615381662,2.16383271,4006.1,4005.5,0.87711507]
[1733615381847,1.04561516,4006.2,4005.9,1.89826361]
[1733615382032,0.8656014,4006.1,4005.9,1.89826361]
[1733615382240,1.04561516,4006.2,4005.9,1.89826361]
[1733615382546,0.86562211,4006.1,4006.0,0.05101507]
[1733615383527,2.3510311,4006.1,4006.0,0.05101507]
[1733615383748,2.16404151,4006.1,4006.0,0.05101507]
[1733615384265,2.35105025,4006.1,4006.0,0.05101507]
[1733615384467,2.351032,4006.1,4006.0,0.05101507]
[1733615385050,3.39664716,4006.1,4006.0,0.05101507]
[1733615385368,2.351032,4006.1,4006.0,0.05101507]
[1733615385583,3.39664716,4006.1,4006.0,0.05101507]
[1733615386986,3.39670135,4006.1,4006.0,0.05101507]
[1733615387555,2.35108619,4006.1,4006.0,0.05101507]
[1733615388771,3.39815081,4006.1,4005.9,0.8261]
[1733615389089,1.04706462,4006.1,4006.0,0.04922417]
[1733615389260,3.39863839,4006.1,4006.0,0.04922417]
[1733615389447,2.35157377,4006.1,4006.0,0.04922417]
[1733615389992,3.39865227,4006.1,4006.0,0.04922417]
[1733615390151,2.35157377,4006.1,4006.0,0.04922417]
[1733615390565,3.91341715,4006.1,4006.0,0.04922417]
[1733615390990,2.35157377,4006.1,4006.0,0.82232417]
[1733615391292,3.39884546,4006.1,4006.0,0.82232417]
[1733615391651,1.23434538,4006.1,4006.0,0.82232417]
[1733615391879,3.39929396,4006.1,4006.0,0.82232417]
[1733615392464,3.39929396,4006.1,4006.0,0.35232417]
[1733615392662,3.21222027,4006.1,4006.0,0.39990753]
[1733615392886,3.39930724,4006.1,4006.0,0.39990753]
[1733615394428,2.35200775,4006.1,4006.0,2.46923064]
[1733615394575,1.04729949,4006.3,4006.1,1.7473]
[1733615394776,1.04729949,4006.5,4006.2,1.07216361]
[1733615395003,2.35198714,4006.4,4006.2,1.11953288]
[1733615395312,1.04729949,4006.5,4006.2,1.11953288]
[1733615395517,0.86589295,4006.4,4006.3,0.7731]
[1733615396074,0.86589295,4006.4,4006.3,0.82046927]
[1733615396816,0.86581265,4006.4,4006.3,0.82046927]
[1733615397180,1.04729949,4006.6,4006.3,0.82046927]
[1733615397518,2.16433285,4006.5,4006.3,2.96388387]
[1733615397675,0.86572796,4006.4,4006.3,1.21665387]
[1733615397874,3.39859024,4006.4,4006.3,0.04736927]
[1733615398097,2.35129075,4006.4,4006.0,1.84526361]
[1733615398317,1.56184338,4006.5,4006.0,1.84526361]
[1733615398318,3.2113426,4006.3,4006.0,1.84526361]
[1733615398529,0.86572796,4006.2,4006.0,1.84526361]
[1733615398802,1.04701633,4006.4,4006.0,1.84526361]
[1733615398996,2.16440965,4006.3,4006.0,1.84526361]
[1733615399242,1.04701633,4006.4,4006.0,1.84526361]
[1733615399536,2.16440525,4006.3,4006.0,0.7731]
[1733615399741,1.04701633,4006.4,4006.2,1.07216361]
[1733615399903,2.16441377,4006.3,4006.2,1.07216361]
[1733615400099,0.86576553,4006.3,4006.2,1.07216361]
[1733615400836,0.86575566,4006.3,4006.2,1.07216361]
[1733615401929,1.04701633,4006.5,4006.2,1.84526361]
[1733615402124,0.86573695,4006.4,4006.2,1.84526361]
[1733615402308,1.04701633,4006.5,4006.2,1.84526361]
[1733615402509,0.86567043,4006.4,4006.2,1.84526361]
[1733615402714,1.04701633,4006.6,4006.4,0.7731]
[1733615402911,0.86567528,4006.5,4006.4,2.5203]
[1733615403113,1.04701633,4006.8,4006.5,2.52022]
[1733615403321,1.04701633,4006.9,4006.7,1.07216361]
[1733615403503,1.04701633,4006.9,4006.7,3.59233361]
[1733615403504,0.8654419,4006.8,4006.7,3.59233361]
[1733615403907,1.04701633,4007.0,4006.7,3.59233361]
[1733615404102,0.86540958,4006.9,4006.7,3.59233361]
[1733615404432,1.04701633,4007.0,4006.7,3.59233361]
[1733615404628,2.08245784,4007.4,4006.7,3.59233361]
[1733615404629,0.86517944,4006.9,4006.7,3.59233361]
[1733615404811,1.04701633,4007.1,4006.8,1.74702]
[1733615405010,2.16295041,4007.0,4006.9,1.74698]
[1733615405225,0.86518016,4007.0,4006.9,3.63194361]
[1733615405433,1.04701633,4007.3,4007.0,1.7469]
[1733615405634,2.16228275,4007.2,4007.1,1.74687]
[1733615405838,1.04701633,4007.4,4007.1,1.74687]
[1733615406044,0.8648947,4007.3,4007.1,1.74687]
[1733615406246,1.56184338,4007.6,4007.1,1.74687]
[1733615406247,1.04701633,4007.5,4007.1,1.74687]
[1733615406401,1.04701633,4007.5,4006.9,1.17599436]
[1733615406402,0.86487593,4007.4,4006.9,0.8128]
[1733615406737,1.04701633,4007.5,4006.9,0.8128]
[1733615406738,1.04701633,4007.5,4007.1,1.07216361]
[1733615406936,2.16150218,4007.4,4007.1,1.07216361]
[1733615407137,1.04701633,4007.5,4007.1,1.07216361]
[1733615407346,0.8645784,4007.4,4007.1,1.07216361]
[1733615407642,1.04701633,4007.6,4007.1,1.07216361]
[1733615407849,2.16084098,4007.5,4007.1,1.07216361]
[1733615408136,1.04701633,4007.6,4007.1,1.07216361]
[1733615408336,2.16079305,4007.5,4007.1,1.07216361]
[1733615408641,0.86413021,4007.4,4007.1,1.07216361]
[1733615408843,1.04701633,4007.6,4007.1,1.07216361]
[1733615409146,2.16026093,4007.5,4007.1,1.07216361]
[1733615409460,1.04701633,4007.7,4007.1,1.07216361]
[1733615409662,2.3463452,4007.6,4007.1,1.07216361]
[1733615409816,0.86392331,4007.5,4007.1,1.07216361]
[1733615410009,1.04701633,4007.7,4007.1,1.07216361]
[1733615410339,1.05042955,4007.6,4007.1,1.07216361]
[1733615410497,1.04701633,4007.7,4007.1,1.07216361]
[1733615410699,2.34592329,4007.6,4007.1,1.07216361]
[1733615411044,0.86376656,4007.5,4007.1,1.07216361]
[1733615411223,1.4845053,4007.7,4007.1,1.07216361]
[1733615411431,2.3458729,4007.6,4007.1,1.07216361]
[1733615411628,1.4845053,4007.7,4007.1,1.07216361]
[1733615411819,0.8636294,4007.6,4007.1,1.07216361]
[1733615411998,0.43748897,4007.7,4007.1,1.07216361]
[1733615416954,0.43748897,4007.7,4007.2,0.04481595]
[1733615417250,0.18640812,4007.6,4007.2,0.04481595]
[1733615417414,0.43748897,4007.7,4007.2,0.04481595]
[1733615417601,1.94197174,4007.8,4007.3,0.7819]
[1733615417802,1.04941549,4007.7,4007.3,0.7819]
[1733615418006,0.89495541,4007.8,4007.3,0.7819]
[1733615418243,0.18640911,4007.7,4007.4,0.04332209]
[1733615418450,0.89495541,4007.8,4007.4,0.04332209]
[1733615418627,1.35702177,4007.8,4007.4,0.04332209]
[1733615418828,0.1864227,4007.7,4007.4,0.04332209]
[1733615419151,1.35702177,4007.8,4007.4,0.04332209]
[1733615419351,0.18644009,4007.7,4007.4,0.04332209]
[1733615419566,1.35702177,4007.8,4007.4,0.04332209]
[1733615419839,0.45667143,4007.7,4007.4,0.04332209]
[1733615420049,0.45667143,4007.7,4007.3,0.7819]
[1733615420050,0.27023144,4007.7,4007.3,0.7819]
[1733615420218,0.27023144,4007.7,4007.5,0.04332209]
[1733615420417,0.27023144,4007.7,4007.3,0.7819]
[1733615420736,0.27023144,4007.7,4007.4,0.04332209]
[1733615421533,0.89495541,4007.8,4007.4,0.04332209]
[1733615422050,0.89495541,4007.8,4007.1,1.07216361]
[1733615422547,0.89495541,4007.8,4007.2,0.04325552]
[1733615423220,2.51311,4007.3,4007.2,0.04325552]
[1733615423419,2.51311,4007.3,4006.4,1.07216361]
[1733615423621,1.7469,4007.1,4006.4,1.07216361]
[1733615423847,1.7469,4007.1,4006.5,0.04169956]
[1733615424352,1.7469,4007.1,4006.4,1.07216361]
[1733615424353,0.7663,4006.9,4006.4,1.07216361]
[1733615424708,0.7663,4006.9,4006.5,0.04169956]
[1733615425210,0.7663,4006.9,4006.1,1.85406361]
[1733615425406,1.0427571,4006.9,4006.6,0.04169956]
[1733615425722,1.0427571,4006.9,4006.7,0.04169956]
[1733615425723,2.7897371,4006.9,4006.7,0.04169956]
[1733615426226,1.74708,4006.7,4006.1,0.7819]
[1733615426425,1.74708,4006.7,4006.1,1.85406361]
[1733615427061,1.74708,4006.7,4005.5,3.0]
[1733615427062,1.74711,4006.6,4005.6,0.8311]
[1733615427230,1.74711,4006.6,4005.8,1.07216361]
[1733615428734,1.74718,4006.5,4005.8,1.07216361]
[1733615428935,0.8233,4006.3,4005.6,0.8311]
[1733615429259,0.8233,4006.3,4005.9,1.07216361]
[1733615432679,0.8233,4006.3,4006.0,0.06877222]
[1733615434489,0.8233,4006.3,4005.9,1.07216361]
[1733615435275,1.18505163,4006.3,4005.6,1.90326361]
[1733615435477,1.74734,4006.1,4005.6,1.90326361]
[1733615435650,1.74739,4006.0,4005.7,0.06877222]
[1733615435853,1.74739,4006.0,4005.6,1.90326361]
[1733615435854,1.74739,4006.0,4005.6,1.07216361]
[1733615436237,1.74739,4006.0,4005.7,0.06877222]
[1733615437964,1.74743,4005.9,4005.7,0.06877222]
[1733615438855,1.74743,4005.9,4005.3,1.83666361]
[1733615439406,1.74743,4005.9,4005.4,0.06891969]
[1733615440382,1.74743,4005.9,4005.4,1.07216361]
[1733615440660,1.74743,4005.9,4005.5,0.06891969]
[1733615440993,1.74747,4005.8,4005.3,1.83666361]
[1733615441196,1.74747,4005.8,4005.6,0.06891969]
[1733615441498,1.7475,4005.7,4005.3,1.07216361]
[1733615441854,0.82,4005.8,4005.0,0.7645]
[1733615442054,0.82,4005.8,4004.7,1.83666361]
[1733615442055,1.7476,4005.5,4004.7,1.83666361]
[1733615443201,1.74765,4005.4,4004.7,1.83666361]
[1733615444362,1.7475,4005.7,4004.7,1.83666361]
[1733615444564,1.74765,4005.4,4004.7,1.83666361]
[1733615444802,0.4489693,4005.6,4004.7,0.7645]
[1733615444959,0.174743,4005.9,4004.7,0.7645]
[1733615444960,1.74775,4005.2,4004.7,0.7645]
[1733615445859,1.74777,4005.1,4004.7,0.7645]
[1733615446898,1.74777,4005.1,4004.8,0.0695144]
[1733615447082,0.82,4005.5,4004.7,0.7645]
[1733615447301,1.74768,4005.3,4004.8,0.0695144]
[1733615447595,1.74768,4005.3,4004.7,0.7645]
[1733615447805,0.82,4005.5,4004.7,0.7645]
[1733615448103,0.7624,4005.8,4004.8,1.25582997]
[1733615448263,1.74759,4005.5,4004.8,1.07216361]
[1733615448605,1.74759,4005.5,4004.9,0.0695144]
[1733615450518,1.74751,4005.7,4004.9,0.0695144]
[1733615451068,1.74756,4005.6,4004.9,0.0695144]
[1733615451292,1.998556,4005.6,4004.9,0.0695144]
[1733615452215,2.49849,4005.3,4004.9,0.0695144]
[1733615452710,1.74773,4005.2,4004.7,0.7645]
[1733615453281,1.74773,4005.2,4004.8,0.06714491]
[1733615453495,1.74773,4005.2,4004.7,0.7645]
[1733615453696,1.74773,4005.2,4004.8,0.06714491]
[1733615453910,1.74773,4005.2,4004.7,0.7645]
[1733615454208,1.74773,4005.2,4004.8,0.06714491]
[1733615454603,1.74773,4005.2,4004.7,0.7645]
[1733615454795,1.74773,4005.2,4004.9,0.06714491]
[1733615454991,1.74773,4005.2,4004.7,0.7645]
[1733615455196,1.74773,4005.2,4005.0,0.06714491]
[1733615455383,0.7508,4005.3,4004.7,0.7645]
[1733615456100,0.7508,4005.3,4004.8,0.06714491]
[1733615456405,0.7508,4005.3,4004.7,0.7645]
[1733615456570,0.7508,4005.3,4004.9,0.06741616]
[1733615456766,0.7508,4005.3,4004.7,0.7645]
[1733615456969,0.7508,4005.3,4005.0,0.06741616]
[1733615457204,0.7508,4005.3,4004.7,0.7645]
[1733615457205,2.748746,4005.6,4004.7,1.83666361]
[1733615457420,2.748746,4005.6,4005.1,0.06741616]
[1733615457582,0.2748746,4005.5,4004.7,1.83666361]
[1733615457788,1.74759,4005.5,4005.2,0.06741616]
[1733615457983,1.74759,4005.5,4004.7,1.83666361]
[1733615458372,0.7502,4005.6,4004.8,0.06741616]
[1733615458771,2.49776,4005.6,4004.8,0.06741616]
[1733615458971,2.49776,4005.6,4004.7,1.83666361]
[1733615459168,1.997376,4005.5,4004.9,0.06741616]
[1733615459373,1.997376,4005.5,4004.7,1.83666361]
[1733615459612,1.997376,4005.5,4005.0,0.06741616]
[1733615459818,1.997376,4005.5,4004.7,1.83666361]
[1733615459972,1.997376,4005.5,4005.1,0.06741616]
[1733615460169,0.2747576,4005.4,4004.7,1.83666361]
[1733615460388,1.7476,4005.5,4004.7,1.83666361]
[1733615460684,0.7502,4005.6,4004.7,1.83666361]
[1733615460685,1.74765,4005.4,4004.8,0.06741616]
[1733615463500,1.74778,4005.1,4004.8,0.06741616]
[1733615463813,1.74782,4005.0,4004.4,0.8014]
[1733615464016,1.922598,4005.0,4004.4,0.8014]
[1733615464172,1.7479,4004.8,4004.5,0.0674114]
[1733615464616,0.174778,4005.0,4004.1,1.87356361]
[1733615464798,1.74787,4004.9,4004.6,0.0674114]
[1733615465115,1.74787,4004.9,4004.1,1.87356361]
[1733615465621,1.74787,4004.9,4004.2,0.0674114]
[1733615468874,0.7502,4005.1,4004.2,0.0674114]
[1733615469114,0.7502,4005.1,4004.4,1.07216361]
[1733615469313,0.999996,4005.1,4004.4,1.07216361]
[1733615469620,0.999996,4005.1,4004.5,0.06751613]
[1733615470694,2.747766,4005.1,4004.5,0.06751613]
[1733615473396,1.74785,4005.0,4004.5,0.06751613]
[1733615473800,1.74785,4005.0,4004.1,2.91395646]
[1733615474020,1.74785,4005.0,4004.6,0.06751613]
[1733615474236,2.0226346,4005.0,4004.2,1.04039285]
[1733615474697,2.0226346,4005.0,4004.3,0.06751613]
[1733615475927,1.74788,4004.9,4004.3,0.06751613]
[1733615476527,0.2747846,4005.0,4004.3,0.06751613]
[1733615476528,1.74791,4004.8,4004.3,0.06751613]
[1733615476888,1.74791,4004.8,4004.1,1.84179285]
[1733615477089,1.74791,4004.8,4004.2,0.06751613]
[1733615477724,1.74781,4005.0,4004.2,0.06751613]
[1733615478622,1.74785,4004.9,4004.2,0.06751613]
[1733615478832,1.997655,4004.9,4004.2,0.06751613]
[1733615479202,0.249805,4004.9,4004.2,0.06751613]
[1733615479402,0.7502,4005.1,4004.2,0.06751613]
[1733615479615,1.7479,4004.9,4004.2,0.06751613]
[1733615480307,1.7479,4004.9,4004.2,1.10790898]
[1733615482314,1.7479,4004.9,4004.3,1.04039285]
[1733615482517,1.7479,4004.9,4004.4,0.06305169]
[1733615482724,1.99771,4004.9,4004.3,1.04039285]
[1733615482917,1.99771,4004.9,4004.4,0.06305169]
[1733615483095,1.99771,4004.9,4004.3,1.04039285]
[1733615483293,1.99771,4004.9,4004.4,0.06305169]
[1733615483497,1.99771,4004.9,4004.3,1.04039285]
[1733615483698,1.99771,4004.9,4004.4,0.06305169]
[1733615483932,1.99771,4004.9,4004.3,1.04039285]
[1733615484098,1.99771,4004.9,4004.4,0.06305169]
[1733615484299,1.99771,4004.9,4004.3,1.04039285]
[1733615484496,1.99771,4004.9,4004.4,0.06305169]
[1733615484695,0.24981,4004.9,4004.3,1.04039285]
[1733615484934,2.49798,4005.1,4004.4,1.10344454]
[1733615485143,0.7502,4005.1,4004.4,0.06305169]
[1733615485341,1.74793,4004.8,4004.4,0.06305169]
[1733615485542,0.8658175,4004.7,4004.4,0.06305169]
[1733615485837,0.8658175,4004.6,4004.1,1.87356361]
[1733615486035,2.79494633,4004.8,4004.5,0.06303207]
[1733615486244,2.35195175,4004.7,4004.1,1.87356361]
[1733615486541,1.04701633,4004.8,4004.1,1.87356361]
[1733615486746,0.86591887,4004.7,4004.1,1.87356361]
[1733615486912,1.04701633,4004.8,4004.2,0.06303207]
[1733615487124,0.86592283,4004.7,4004.2,0.06303207]
[1733615487446,1.04701633,4004.8,4004.2,0.06303207]
[1733615487610,0.86596038,4004.7,4004.2,0.06303207]
[1733615487813,1.04701633,4004.8,4004.2,0.06303207]
[1733615488046,0.86596477,4004.7,4004.2,0.06303207]
[1733615488311,1.04701633,4004.9,4004.2,0.06303207]
[1733615488610,2.16475108,4004.8,4004.2,0.06303207]
[1733615488813,0.86589256,4004.7,4004.2,0.06303207]
[1733615489025,1.76595309,4004.9,4004.2,0.06303207]
[1733615489350,2.16477181,4004.8,4004.2,0.06303207]
[1733615489510,0.86585829,4004.7,4004.2,0.06303207]
[1733615489711,1.76595309,4004.9,4004.2,0.06303207]
[1733615489947,2.93422689,4004.8,4004.2,0.06303207]
[1733615490120,0.86585108,4004.7,4004.2,0.06303207]
[1733615490318,0.58258465,4004.8,4004.2,0.06303207]
[1733615490554,0.86579915,4004.7,4004.2,0.06303207]
[1733615490851,0.58258465,4004.8,4004.2,0.06303207]
[1733615491061,0.86580756,4004.7,4004.2,0.06303207]
[1733615491222,0.58258465,4004.8,4004.2,0.06303207]
[1733615492519,0.86570345,4004.7,4004.2,0.06303207]
[1733615492724,0.58258465,4004.8,4004.2,0.06303207]
[1733615492919,0.86570366,4004.7,4004.2,0.06303207]
[1733615493155,0.58258465,4004.8,4004.2,0.06303207]
[1733615493362,0.86570654,4004.7,4004.2,0.06303207]
[1733615493564,0.42431575,4004.7,4004.2,0.06303207]
[1733615495064,0.86561117,4004.6,4004.2,0.06303207]
[1733615495229,0.42431575,4004.7,4004.2,0.06303207]
[1733615495428,0.86540032,4004.6,4004.2,0.06303207]
[1733615495636,0.42431575,4004.7,4004.2,0.06303207]
[1733615495838,0.86529014,4004.6,4004.2,0.06303207]
[1733615496161,0.32586724,4004.6,4004.2,0.06303207]
[1733615498031,2.79497633,4004.7,4004.2,0.06303207]
[1733615498315,0.86501152,4004.6,4004.2,0.06303207]
[1733615498467,1.74796,4004.7,4004.2,0.06303207]
[1733615500323,0.86471758,4004.6,4004.2,0.06303207]
[1733615500528,1.74796,4004.7,4004.2,0.06303207]
[1733615500747,0.27949763,4004.6,4004.2,0.06303207]
[1733615511391,1.74796,4004.7,4004.2,0.06303207]
[1733615512859,0.8654494,4004.6,4004.2,0.06303207]
[1733615513160,1.74796,4004.7,4004.2,0.06303207]
[1733615513360,0.18708885,4004.6,4004.2,0.06303207]
[1733615513560,1.74796,4004.7,4004.2,0.06303207]
[1733615513790,0.18708925,4004.6,4004.2,0.06303207]
[1733615514000,2.18364197,4004.7,4004.2,0.06303207]
[1733615514167,0.18708986,4004.6,4004.2,0.06303207]
[1733615514502,2.18364197,4004.7,4004.2,0.06303207]
[1733615514704,1.05263685,4004.6,4004.2,0.06303207]
[1733615514864,2.18364197,4004.7,4004.2,0.06303207]
[1733615515058,0.51019362,4004.6,4004.2,0.06303207]
[1733615515362,2.07106583,4004.6,4004.2,0.06303207]
[1733615515560,0.18713956,4004.5,4004.2,0.06303207]
[1733615515782,2.07106583,4004.6,4004.2,0.06303207]